fUSD/lending_fUSD_20240424
["ID","MTS","AMOUNT","RATE_DAILY","PERIOD"]
[323454088,1713995445135,-500.0,0.00012671,2]
[323454089,1713995445144,-960.76,0.00012671,2]
[323454090,1713995445153,-288.99,0.00012671,2]
[323454091,1713995445163,-500.0,0.00012671,2]
[323454092,1713995445172,-214.43705407,0.00012674,2]
[323454093,1713995445181,-245.44,0.00012685,2]
[323454094,1713995445191,-500.0,0.00012774,2]
[323454095,1713995445200,-500.0,0.00012774,2]
[323454096,1713995445210,-304.6,0.00012774,2]
[323454097,1713995445219,-500.0,0.00012774,2]
[323454098,1713995445228,-365.97088217,0.000129,2]
[323454099,1713995445237,-10000.0,0.000129,2]
[323454100,1713995445247,-4524.19543814,0.000129,2]
[323454101,1713995445256,-4524.19543812,0.000129,2]
[323454102,1713995445265,-526.7,0.00012945,2]
[323454103,1713995445275,-500.0,0.00012945,2]
[323454104,1713995445284,-500.0,0.00012945,2]
[323454105,1713995445293,-423.79,0.00012945,2]
[323454106,1713995445303,-319.63,0.00012945,2]
[323454107,1713995445312,-500.0,0.00012945,2]
[323454108,1713995445324,-389.17,0.00012945,2]
[323454109,1713995445333,-423.13,0.00012945,2]
[323454110,1713995445342,-1744.79,0.00012945,2]
[323454111,1713995445351,-500.0,0.00012945,2]
[323454112,1713995445360,-500.0,0.00012945,2]
[323454113,1713995445370,-304.54,0.00012945,2]
[323454114,1713995445379,-500.0,0.00012945,2]
[323454115,1713995445389,-500.0,0.00012945,2]
[323454116,1713995445399,-414.07,0.00012945,2]
[323454117,1713995445409,-500.0,0.00012945,2]
[323454118,1713995445418,-767.4,0.00012945,2]
[323454119,1713995445428,-245.48,0.00012945,2]
[323454120,1713995445438,-330.01,0.00012945,2]
[323454121,1713995445448,-594.07,0.00012945,2]
[323454122,1713995445459,-500.0,0.00012945,2]
[323454123,1713995445468,-500.0,0.00012945,2]
[323454124,1713995445478,-519.72,0.00012945,2]
[323454125,1713995445488,-500.0,0.00012945,2]
[323454126,1713995445497,-571.79,0.00012945,2]
[323454127,1713995445506,-500.0,0.00012945,2]
[323454128,1713995445517,-960.76,0.00012945,2]
[323454129,1713995445526,-500.0,0.00012945,2]
[323454130,1713995445536,-521.90737213,0.00013,2]
[323454131,1713995445545,-1001.8,0.00013,2]
[323454132,1713995445555,-316.7,0.00013,2]
[323454133,1713995445568,-515.0,0.00013013,2]
[323454134,1713995445578,-500.0,0.00013048,2]
[323454135,1713995445587,-500.0,0.00013048,2]
[323454136,1713995445597,-207.23,0.00013048,2]
[323454137,1713995445606,-1000.0,0.00013095,2]
[323454138,1713995445615,-380.93,0.00013151,2]
[323454140,1713995445624,-317.45,0.00013151,2]
[323454141,1713995445632,-264.54,0.00013151,2]
[323454142,1713995445642,-220.45,0.00013151,2]
[323454143,1713995445651,-183.71,0.00013151,2]
[323454144,1713995445660,-153.09,0.00013151,2]
[323454145,1713995445669,-765.46,0.00013151,2]
[323454146,1713995445679,-403.66796604,0.00013219,2]
[323454147,1713995445688,-500.0,0.00013219,2]
[323454148,1713995445698,-500.0,0.00013219,2]
[323454149,1713995445708,-1744.79,0.00013219,2]
[323454150,1713995445717,-300.86,0.00013219,2]
[323454151,1713995445726,-500.0,0.00013219,2]
[323454152,1713995445736,-500.0,0.00013219,2]
[323454153,1713995445746,-221.33,0.00013219,2]
[323454154,1713995445755,-500.0,0.00013219,2]
[323454155,1713995445766,-767.4,0.00013219,2]
[323454156,1713995445775,-348.42,0.00013219,2]
[323454157,1713995445785,-500.0,0.00013219,2]
[323454158,1713995445794,-500.0,0.00013219,2]
[323454159,1713995445804,-571.79,0.00013219,2]
[323454160,1713995445814,-500.0,0.00013219,2]
[323454161,1713995445824,-960.76,0.00013219,2]
[323454162,1713995445833,-406.16,0.00013219,2]
[323454163,1713995445843,-1461.0,0.00013242,2]
[323454164,1713995445853,-500.0,0.00013322,2]
[323454165,1713995445861,-500.0,0.00013322,2]
[323454166,1713995445871,-3149.08,0.0001337,10]
[323454167,1713995445880,-500.0,0.00013425,2]
[323454168,1713995445889,-4524.19543812,0.00013493,2]
[323454169,1713995445898,-500.0,0.00013493,2]
[323454170,1713995445907,-602.52,0.00013493,2]
[323454171,1713995445916,-1744.79,0.00013493,2]
[323454172,1713995445925,-515.2,0.00013493,2]
[323454173,1713995445936,-425.72,0.00013493,2]
[323454174,1713995445945,-500.0,0.00013493,2]
[323454175,1713995445956,-767.4,0.00013493,2]
[323454176,1713995445966,-615.52,0.00013493,2]
[323454177,1713995445976,-500.0,0.00013493,2]
[323454178,1713995445985,-571.79,0.00013493,2]
[323454179,1713995445994,-500.0,0.00013493,2]
[323454180,1713995446004,-960.76,0.00013493,2]
[323454181,1713995446014,-500.0,0.00013596,2]
[323454182,1713995446023,-500.0,0.00013596,2]
[323454183,1713995446033,-321.19400079,0.00013698,2]
[323454184,1713995446043,-515.0,0.00013698,2]
[323454185,1713995446052,-1000.0,0.00013698,2]
[323454186,1713995446062,-1000.0,0.00013698,2]
[323454187,1713995446072,-1000.0,0.00013698,2]
[323454188,1713995446081,-969.92276463,0.00013698,2]
[323454189,1713995446091,-500.0,0.00013698,2]
[323454190,1713995446101,-500.0,0.00013698,2]
[323454191,1713995446110,-500.0,0.00013698,2]
[323454192,1713995446121,-500.0,0.00013698,2]
[323454193,1713995446130,-500.0,0.00013698,2]
[323454194,1713995446140,-500.0,0.00013698,2]
[323454195,1713995446149,-500.0,0.00013698,2]
[323454196,1713995446158,-500.0,0.00013698,2]
[323454197,1713995446168,-500.0,0.00013698,2]
[323454198,1713995446178,-500.0,0.00013698,2]
[323454199,1713995446187,-1000.0,0.00013698,2]
[323454200,1713995446196,-1000.0,0.00013698,5]
[323454201,1713995446206,-1000.0,0.00013698,5]
[323454202,1713995446216,-680.34438576,0.00013698,5]
[323454203,1713995446225,-972.92174354,0.00013698,2]
[323454204,1713995446234,-200.0,0.00013699,2]
[323454205,1713995446245,-200.0,0.00013699,2]
[323454206,1713995446254,-200.0,0.00013699,2]
[323454207,1713995446264,-200.0,0.00013699,2]
[323454208,1713995446273,-200.0,0.00013699,2]
[323454209,1713995446283,-500.0,0.00013699,2]
[323454210,1713995446293,-638.734953,0.00013699,2]
[323454211,1713995446302,-1000.0,0.00013699,2]
[323454212,1713995446311,-1000.0,0.00013699,2]
[323454213,1713995446322,-1000.0,0.00013699,2]
[323454214,1713995446333,-1000.0,0.00013699,2]
[323454215,1713995446342,-1000.0,0.00013699,2]
[323454216,1713995446351,-1000.0,0.00013699,2]
[323454217,1713995446363,-1000.0,0.00013699,2]
[323454218,1713995446373,-1000.0,0.00013699,2]
[323454219,1713995446382,-1000.0,0.00013699,2]
[323454220,1713995446392,-1000.0,0.00013699,2]
[323454221,1713995446404,-1000.0,0.00013699,2]
[323454222,1713995446413,-1000.0,0.00013699,2]
[323454223,1713995446423,-1000.0,0.00013699,2]
[323454224,1713995446432,-1000.0,0.00013699,2]
[323454225,1713995446441,-1000.0,0.00013699,2]
[323454226,1713995446450,-1000.0,0.00013699,2]
[323454227,1713995446460,-1000.0,0.00013699,2]
[323454228,1713995446469,-1000.0,0.00013699,2]
[323454229,1713995446477,-1000.0,0.00013699,2]
[323454230,1713995446487,-1000.0,0.00013699,2]
[323454231,1713995446497,-1000.0,0.00013699,2]
[323454232,1713995446506,-1000.0,0.00013699,2]
[323454233,1713995446516,-1000.0,0.00013699,2]
[323454234,1713995446526,-1000.0,0.00013699,2]
[323454235,1713995446535,-1000.0,0.00013699,2]
[323454236,1713995446544,-1000.0,0.00013699,2]
[323454237,1713995446553,-1000.0,0.00013699,2]
[323454238,1713995446563,-1000.0,0.00013699,2]
[323454239,1713995446573,-1000.0,0.00013699,2]
[323454240,1713995446582,-1000.0,0.00013699,2]
[323454241,1713995446591,-1000.0,0.00013699,2]
[323454242,1713995446600,-1000.0,0.00013699,2]
[323454243,1713995446609,-1000.0,0.00013699,2]
[323454244,1713995446618,-1000.0,0.00013699,2]
[323454245,1713995446627,-1000.0,0.00013699,2]
[323454246,1713995446637,-1000.0,0.00013699,2]
[323454247,1713995446646,-1000.0,0.00013699,2]
[323454248,1713995446655,-1000.0,0.00013699,2]
[323454249,1713995446664,-1000.0,0.00013699,2]
[323454250,1713995446673,-2751.0,0.00013699,2]
[323454251,1713995446683,-250.0,0.00013699,2]
[323454252,1713995446692,-1000.0,0.00013699,2]
[323454253,1713995446752,-500.0,0.00013699,2]
[323454254,1713995446761,-177.69,0.00013699,2]
[323454255,1713995446771,-200.0,0.00013699,2]
[323454256,1713995446780,-1374.41,0.000137,2]
[323454257,1713995446789,-1374.41,0.000137,2]
[323454258,1713995446798,-1374.41,0.000137,2]
[323454259,1713995446807,-1374.41,0.000137,2]
[323454260,1713995446816,-500.0,0.00013767,2]
[323454261,1713995446825,-1744.79,0.00013767,2]
[323454262,1713995446834,-500.0,0.00013767,2]
[323454263,1713995446843,-767.4,0.00013767,2]
[323454264,1713995446852,-500.0,0.00013767,2]
[323454265,1713995446862,-571.79,0.00013767,2]
[323454266,1713995446871,-449.65233954,0.00013767,2]
[323454267,1713995446881,-960.76,0.00013767,2]
[323454268,1713995446891,-1556.12434402,0.00013769,2]
[323454269,1713995446900,-3470.69175967,0.00013863,2]
[323454270,1713995446910,-500.0,0.0001387,2]
[323454271,1713995446919,-500.0,0.0001387,2]
[323454272,1713995446928,-175.0,0.0001387,2]
[323454273,1713995446938,-3470.69175967,0.00013994,2]
[323454274,1713995446947,-2800.0,0.00014,2]
[323454275,1713995446957,-280.69,0.00014,2]
[323454276,1713995446967,-280.69,0.00014,2]
[323454277,1713995446977,-280.69,0.00014,2]
[323454278,1713995446986,-280.69,0.00014,2]
[323454279,1713995446995,-280.69,0.00014,2]
[323454280,1713995447004,-280.69,0.00014,2]
[323454281,1713995447013,-280.69,0.00014,2]
[323454282,1713995447022,-280.69,0.00014,2]
[323454283,1713995447032,-280.69,0.00014,2]
[323454284,1713995447041,-500.0,0.00014041,2]
[323454285,1713995447050,-1744.79,0.00014041,2]
[323454286,1713995447059,-500.0,0.00014041,2]
[323454287,1713995447069,-767.4,0.00014041,2]
[323454288,1713995447078,-500.0,0.00014041,2]
[323454289,1713995447088,-571.79,0.00014041,2]
[323454290,1713995447097,-960.76,0.00014041,2]
[323454291,1713995447107,-200.0,0.00014053,2]
[323454292,1713995447116,-1001.8,0.0001409,2]
[323454293,1713995447125,-320.51986161,0.00014141,2]
[323454294,1713995447135,-155.0,0.00014142,2]
[323454295,1713995447144,-500.0,0.00014144,2]
[323454296,1713995447154,-1556.12434402,0.0001419,2]
[323454297,1713995447164,-500.0,0.00014219,2]
[323454298,1713995447174,-3470.69175967,0.00014255,2]
[323454299,1713995447183,-1000.0,0.00014273,2]
[323454300,1713995447193,-1000.0,0.00014285,2]
[323454301,1713995447204,-549.50117744,0.00014315,2]
[323454302,1713995447214,-1744.79,0.00014315,2]
[323454303,1713995447224,-500.0,0.00014315,2]
[323454304,1713995447233,-767.4,0.00014315,2]
[323454305,1713995447242,-442.52,0.00014315,2]
[323454306,1713995447252,-571.79,0.00014315,2]
[323454307,1713995447261,-960.76,0.00014315,2]
[323454308,1713995447272,-1556.12434402,0.00014322,2]
[323454309,1713995447281,-518.0,0.00014383,2]
[323454310,1713995447291,-200.0,0.00014404,2]
[323454311,1713995447300,-500.0,0.00014418,2]
[323454312,1713995447310,-200.0,0.00014439,2]
[323454313,1713995447321,-490.998353,0.00014555,2]
[323454314,1713995447331,-1744.79,0.00014589,2]
[323454315,1713995447341,-500.0,0.00014589,2]
[323454316,1713995447350,-767.4,0.00014589,2]
[323454317,1713995447360,-571.79,0.00014589,2]
[323454318,1713995447370,-960.76,0.00014589,2]
[323454319,1713995447380,-1556.12434402,0.000146,2]
[323454320,1713995447389,-3470.69175967,0.00014655,2]
[323454321,1713995447403,-247.86498809,0.00014691,2]
[323454322,1713995447412,-500.0,0.00014692,2]
[323454323,1713995447422,-4524.19543812,0.00014774,2]
[323454324,1713995447432,-3470.69175967,0.00014831,2]
[323454325,1713995447441,-165.32017145,0.00014831,2]
[323454326,1713995447450,-1000.0,0.00014849,2]
[323454327,1713995447461,-1556.12434402,0.00014852,2]
[323454328,1713995447471,-1744.79,0.00014863,2]
[323454329,1713995447481,-500.0,0.00014863,2]
[323454330,1713995447490,-767.4,0.00014863,2]
[323454331,1713995447500,-571.79,0.00014863,2]
[323454332,1713995447509,-960.76,0.00014863,2]
[323454333,1713995447519,-500.0,0.0001488,2]
[323454334,1713995447528,-12870.34976915,0.000149,2]
[323454335,1713995447537,-245.44,0.00014918,2]
[323454336,1713995447546,-500.0,0.00014966,2]
[323454337,1713995447555,-166.40089329,0.00015,2]
[323454338,1713995447565,-1185.19245969,0.00015,2]
[323454339,1713995447574,-8582.95170931,0.00015,2]
[323454340,1713995447583,-200.0,0.00015,2]
[323454341,1713995447592,-155.0,0.00015,2]
[323454342,1713995447601,-2541.50230818,0.00015,2]
[323454343,1713995447610,-1001.8,0.00015,2]
[323454344,1713995447619,-316.7,0.00015,2]
[323454345,1713995447629,-150.25808398,0.00015,15]
[323454346,1713995447639,-287.34,0.00015016,2]
[323454347,1713995447648,-300.0,0.00015068,2]
[323454348,1713995447657,-1744.79,0.00015137,2]
[323454349,1713995447666,-500.0,0.00015137,2]
[323454350,1713995447676,-767.4,0.00015137,2]
[323454351,1713995447685,-571.79,0.00015137,2]
[323454352,1713995447694,-960.76,0.00015137,2]
[323454353,1713995447704,-1556.12434402,0.00015143,2]
[323454354,1713995447717,-1001.8,0.0001518,2]
[323454355,1713995447726,-3470.69175967,0.00015181,2]
[323454356,1713995447738,-200.0,0.00015211,2]
[323454357,1713995447748,-200.0,0.00015211,2]
[323454358,1713995447758,-500.0,0.0001524,2]
[323454359,1713995447767,-200.0,0.00015277,2]
[323454360,1713995447777,-339.606,0.00015327,2]
[323454361,1713995447787,-1556.12434402,0.00015395,2]
[323454362,1713995447796,-339.606,0.00015397,2]
[323454363,1713995447805,-1744.79,0.00015411,2]
[323454364,1713995447815,-500.0,0.00015411,2]
[323454365,1713995447824,-767.4,0.00015411,2]
[323454366,1713995447833,-571.79,0.00015411,2]
[323454367,1713995447843,-960.76,0.00015411,2]
[323454368,1713995447852,-3470.69175967,0.00015464,2]
[323454369,1713995447862,-339.606,0.00015467,2]
[323454370,1713995447871,-155.0,0.000155,2]
[323454371,1713995447880,-150.0,0.000155,2]
[323454372,1713995447890,-150.0,0.000155,2]
[323454373,1713995447899,-500.0,0.00015514,2]
[323454374,1713995447908,-339.606,0.00015537,2]
[323454375,1713995447918,-500.0,0.00015541,2]
[323454376,1713995447927,-339.606,0.00015608,2]
[323454377,1713995447936,-339.606,0.0001568,2]
[323454378,1713995447945,-1744.79,0.00015685,2]
[323454379,1713995447955,-384.43429501,0.00015685,2]
[323454380,1713995447964,-767.4,0.00015685,2]
[323454381,1713995447974,-571.79,0.00015685,2]
[323454382,1713995447983,-960.76,0.00015685,2]
[323454383,1713995447993,-339.606,0.00015753,2]
[323454384,1713995448002,-3470.69175967,0.0001578,2]
[323454385,1713995448011,-275.99796228,0.00015788,2]
[323454386,1713995448021,-1556.12434402,0.000158,2]
[323454387,1713995448030,-339.606,0.00015826,2]
[323454388,1713995448040,-167.0,0.00015831,2]
[323454389,1713995448049,-339.606,0.000159,2]
[323454390,1713995448058,-1744.79,0.00015959,2]
[323454391,1713995448068,-767.4,0.00015959,2]
[323454392,1713995448077,-571.79,0.00015959,2]
[323454393,1713995448087,-960.76,0.00015959,2]
[323454394,1713995448096,-339.606,0.00015974,2]
[323454395,1713995448106,-200.0,0.00015982,2]
[323454396,1713995448115,-800.0,0.00016,2]
[323454397,1713995448125,-2850.0,0.00016,2]
[323454398,1713995448134,-1000.0,0.00016,2]
[323454399,1713995448144,-2000.0,0.00016,2]
[323454400,1713995448154,-150.0,0.00016,2]
[323454401,1713995448163,-150.0,0.00016,2]
[323454402,1713995448173,-2000.0,0.0001601,2]
[323454403,1713995448183,-2000.0,0.0001602,2]
[323454404,1713995448193,-2000.0,0.0001603,2]
[323454405,1713995448202,-2000.0,0.0001604,2]
[323454406,1713995448212,-2000.0,0.0001605,2]
[323454407,1713995448222,-4524.19543812,0.00016056,2]
[323454408,1713995448232,-2000.0,0.0001606,2]
[323454409,1713995448241,-2000.0,0.0001607,2]
[323454410,1713995448251,-2000.0,0.0001608,2]
[323454411,1713995448261,-2852.215653,0.0001609,2]
[323454412,1713995448270,-1001.8,0.0001609,2]
[323454413,1713995448280,-1556.12434402,0.00016108,2]
[323454414,1713995448290,-5533.32,0.00016116,2]
[323454415,1713995448302,-3470.69175967,0.00016152,2]
[323454416,1713995448311,-200.0,0.00016189,2]
[323454417,1713995448323,-1556.12434402,0.00016194,2]
[323454418,1713995448333,-500.0,0.00016203,2]
[323454419,1713995448342,-1744.79,0.00016233,2]
[323454420,1713995448352,-767.4,0.00016233,2]
[323454421,1713995448361,-571.79,0.00016233,2]
[323454422,1713995448372,-960.76,0.00016233,2]
[323454423,1713995448381,-1001.8,0.0001627,2]
[323454424,1713995448391,-167.0,0.00016354,2]
[323454425,1713995448401,-200.0,0.00016368,2]
[323454426,1713995448410,-3470.69175967,0.0001643,2]
[323454427,1713995448421,-200.0,0.00016438,2]
[323454428,1713995448430,-300.0,0.00016438,2]
[323454429,1713995448440,-2819.30521328,0.000165,2]
[323454430,1713995448449,-150.0,0.000165,2]
[323454431,1713995448459,-150.0,0.000165,2]
[323454432,1713995448469,-1744.79,0.00016507,2]
[323454433,1713995448478,-767.4,0.00016507,2]
[323454434,1713995448488,-571.79,0.00016507,2]
[323454435,1713995448498,-960.76,0.00016507,2]
[323454436,1713995448507,-1556.12434402,0.00016512,2]
[323454437,1713995448516,-3470.69175967,0.00016531,2]
[323454438,1713995448526,-316.7,0.00016555,2]
[323454439,1713995448535,-13530.0,0.000166,3]
[323454440,1713995448545,-160.75,0.00016712,2]
[323454441,1713995448554,-3470.69175967,0.00016727,2]
[323454442,1713995448564,-200.0,0.00016754,2]
[323454443,1713995448573,-1744.79,0.00016781,2]
[323454444,1713995448583,-767.4,0.00016781,2]
[323454445,1713995448593,-571.79,0.00016781,2]
[323454446,1713995448603,-960.76,0.00016781,2]
[323454447,1713995448612,-1556.12434402,0.00016859,2]
[323454448,1713995448622,-500.0,0.00016864,2]
[323454449,1713995448631,-167.0,0.00016876,2]
[323454450,1713995448640,-1000.0,0.000169,2]
[323454451,1713995448650,-1000.0,0.0001695,2]
[323454452,1713995448659,-152.84073467,0.00016983,2]
[323454453,1713995448668,-1610.81121698,0.00017,2]
[323454454,1713995448678,-150.0,0.00017,2]
[323454455,1713995448687,-150.0,0.00017,2]
[323454456,1713995448696,-701.22630949,0.00017006,2]
[323454457,1713995448705,-153.11746327,0.00017012,2]
[323454458,1713995448715,-202.32823677,0.00017016,2]
[323454459,1713995448724,-1744.79,0.00017055,2]
[323454460,1713995448733,-767.4,0.00017055,2]
[323454461,1713995448742,-571.79,0.00017055,2]
[323454462,1713995448752,-960.76,0.00017055,2]
[323454463,1713995448761,-701.22630949,0.00017081,2]
[323454464,1713995448770,-701.22630949,0.00017084,2]
[323454465,1713995448779,-200.0,0.00017102,2]
[323454466,1713995448788,-156.76961557,0.00017116,2]
[323454467,1713995448798,-158.16660144,0.00017123,2]
[323454468,1713995448807,-164.17650358,0.00017137,2]
[323454469,1713995448816,-400.6793135,0.00017147,2]
[323454470,1713995448828,-245.44,0.00017151,2]
[323454471,1713995448837,-152.15698381,0.00017157,2]
[323454472,1713995448846,-339.82243824,0.00017169,2]
[323454473,1713995448855,-1001.8,0.0001718,2]
[323454474,1713995448865,-400.6793135,0.00017189,2]
[323454475,1713995448876,-3470.69175967,0.00017204,2]
[323454476,1713995448885,-791.19304582,0.0001723,2]
[323454477,1713995448894,-831.6932465,0.00017246,2]
[323454478,1713995448903,-162.58953009,0.00017248,2]
[323454479,1713995448912,-1610.81121698,0.00017255,2]
[323454480,1713995448922,-1556.12434402,0.00017257,2]
[323454481,1713995448931,-162.58953009,0.00017266,2]
[323454482,1713995448940,-339.82243824,0.00017288,2]
[323454483,1713995448949,-159.35864408,0.00017293,2]
[323454484,1713995448959,-1744.93558241,0.00017329,2]
[323454485,1713995448969,-767.49253627,0.00017329,2]
[323454486,1713995448979,-571.88884966,0.00017329,2]
[323454487,1713995448988,-960.99731558,0.00017329,2]
[323454488,1713995448997,-154.9817762,0.00017337,2]
[323454489,1713995449006,-155.01598096,0.00017337,2]
[323454490,1713995449016,-4524.19543812,0.00017337,2]
[323454491,1713995449025,-339.82243824,0.0001736,2]
[323454492,1713995449034,-1001.8,0.0001736,2]
[323454493,1713995449043,-165.32017145,0.00017366,2]
[323454494,1713995449053,-3470.69175967,0.00017388,2]
[323454495,1713995449063,-167.0,0.00017399,2]
[323454496,1713995449072,-831.6932465,0.00017404,2]
[323454497,1713995449082,-1610.81121698,0.00017434,2]
[323454498,1713995449092,-701.22630949,0.00017465,2]
[323454499,1713995449101,-1610.81121698,0.00017473,2]
[323454500,1713995449111,-1556.12434402,0.00017499,2]
[323454501,1713995449120,-150.0,0.000175,2]
[323454502,1713995449129,-150.0,0.000175,2]
[323454503,1713995449138,-155.97008448,0.00017512,2]
[323454504,1713995449147,-200.0,0.00017525,2]
[323454505,1713995449158,-500.0,0.00017525,2]
[323454506,1713995449167,-500.0,0.00017525,2]
[323454507,1713995449177,-200.0,0.00017525,2]
[323454508,1713995449186,-150.686753,0.00017534,2]
[323454509,1713995449196,-612.0,0.00017567,2]
[323454510,1713995449206,-3470.69175967,0.00017571,2]
[323454511,1713995449215,-1610.81121698,0.00017603,2]
[323454512,1713995449224,-339.82243824,0.00017611,2]
[323454513,1713995449233,-153.32181976,0.00017631,2]
[323454514,1713995449242,-500.0,0.00017655,2]
[323454515,1713995449251,-500.0,0.00017655,2]
[323454516,1713995449260,-500.0,0.00017655,2]
[323454517,1713995449269,-500.0,0.00017655,2]
[323454518,1713995449278,-500.0,0.00017655,2]
[323454519,1713995449287,-500.0,0.00017655,2]
[323454520,1713995449297,-500.0,0.00017655,2]
[323454521,1713995449306,-500.0,0.00017655,2]
[323454522,1713995449315,-500.0,0.00017655,2]
[323454523,1713995449328,-500.0,0.00017655,2]
[323454524,1713995449338,-500.0,0.00017655,2]
[323454525,1713995449348,-500.0,0.00017655,2]
[323454526,1713995449357,-500.0,0.00017655,2]
[323454527,1713995449367,-500.0,0.00017655,2]
[323454528,1713995449376,-500.0,0.00017655,2]
[323454529,1713995449386,-500.0,0.00017655,2]
[323454530,1713995449395,-500.0,0.00017655,2]
[323454531,1713995449404,-500.0,0.00017655,2]
[323454532,1713995449414,-500.0,0.00017655,2]
[323454533,1713995449424,-500.0,0.00017655,2]
[323454534,1713995449432,-500.0,0.00017655,2]
[323454535,1713995449441,-500.0,0.00017655,2]
[323454536,1713995449450,-500.0,0.00017655,2]
[323454537,1713995449461,-500.0,0.00017655,2]
[323454538,1713995449474,-500.0,0.00017655,2]
[323454539,1713995449483,-500.0,0.00017655,2]
[323454540,1713995449493,-500.0,0.00017655,2]
[323454541,1713995449502,-500.0,0.00017655,2]
[323454542,1713995449511,-500.0,0.00017655,2]
[323454543,1713995449521,-500.0,0.00017655,2]
[323454544,1713995449531,-500.0,0.00017655,2]
[323454545,1713995449541,-500.0,0.00017655,2]
[323454546,1713995449550,-500.0,0.00017655,2]
[323454547,1713995449559,-500.0,0.00017655,2]
[323454548,1713995449568,-500.0,0.00017655,2]
[323454549,1713995449578,-500.0,0.00017655,2]
[323454550,1713995449588,-500.0,0.00017655,2]
[323454551,1713995449597,-500.0,0.00017655,2]
[323454552,1713995449606,-500.0,0.00017655,2]
[323454553,1713995449615,-500.0,0.00017655,2]
[323454554,1713995449625,-500.0,0.00017655,2]
[323454555,1713995449634,-500.0,0.00017655,2]
[323454556,1713995449644,-500.0,0.00017655,2]
[323454557,1713995449653,-500.0,0.00017655,2]
[323454558,1713995449663,-500.0,0.00017655,2]
[323454559,1713995449672,-500.0,0.00017655,2]
[323454560,1713995449682,-500.0,0.00017655,2]
[323454561,1713995449691,-500.0,0.00017655,2]
[323454562,1713995449701,-500.0,0.00017655,2]
[323454563,1713995449711,-500.0,0.00017655,2]
[323454564,1713995449721,-500.0,0.00017655,2]
[323454565,1713995449731,-500.0,0.00017655,2]
[323454566,1713995449741,-500.0,0.00017655,2]
[323454567,1713995449751,-500.0,0.00017655,2]
[323454568,1713995449761,-500.0,0.00017655,2]
[323454569,1713995449771,-500.0,0.00017655,2]
[323454570,1713995449780,-500.0,0.00017655,2]
[323454571,1713995449790,-500.0,0.00017655,2]
[323454572,1713995449800,-500.0,0.00017655,2]
[323454573,1713995449809,-500.0,0.00017655,2]
[323454574,1713995449819,-500.0,0.00017655,2]
[323454575,1713995449828,-500.0,0.00017655,2]
[323454576,1713995449837,-500.0,0.00017655,2]
[323454577,1713995449847,-500.0,0.00017655,2]
[323454578,1713995449857,-500.0,0.00017655,2]
[323454579,1713995449866,-500.0,0.00017655,2]
[323454580,1713995449875,-500.0,0.00017655,2]
[323454581,1713995449885,-500.0,0.00017655,2]
[323454582,1713995449894,-500.0,0.00017655,2]
[323454583,1713995449903,-500.0,0.00017655,2]
[323454584,1713995449912,-500.0,0.00017655,2]
[323454585,1713995449922,-500.0,0.00017655,2]
[323454586,1713995449931,-500.0,0.00017655,2]
[323454587,1713995449942,-500.0,0.00017655,2]
[323454588,1713995449951,-500.0,0.00017655,2]